[Event "Early-Titled-Tuesday-Blitz-February-27-2024"]
[Site "Chess.com"]
[Date "2024.02.27"]
[Round "3"]
[White "jens1102"]
[Black "toninhojit"]
[Result "1-0"]
[WhiteElo "2682"]
[BlackElo "2480"]
[TimeControl "180+1"]
[EndTime "8:29:24 PST"]
[Termination "jens1102 won by resignation"]

1. e4 {[%clk 0:03:00.6]} 1... e5 {[%clk 0:02:59.7]} 2. Nf3 {[%clk 0:03:00.6]}
2... Nc6 {[%clk 0:03:00.3]} 3. Bb5 {[%clk 0:03:00.7]} 3... Nf6 {[%clk
0:03:00.3]} 4. O-O {[%clk 0:03:00.8]} 4... Nxe4 {[%clk 0:03:00.6]} 5. Re1 {[%clk
0:03:00.3]} 5... Nd6 {[%clk 0:03:01.3]} 6. Nxe5 {[%clk 0:02:55.8]} 6... Nxe5
{[%clk 0:02:58.2]} 7. Rxe5+ {[%clk 0:02:56.7]} 7... Be7 {[%clk 0:02:58.7]} 8.
Bf1 {[%clk 0:02:56.2]} 8... O-O {[%clk 0:02:59.3]} 9. Nc3 {[%clk 0:02:55.7]}
9... Bf6 {[%clk 0:02:59.9]} 10. Re2 {[%clk 0:02:55.2]} 10... Re8 {[%clk
0:02:59.9]} 11. d4 {[%clk 0:02:52.9]} 11... Rxe2 {[%clk 0:02:58]} 12. Bxe2
{[%clk 0:02:51.5]} 12... c6 {[%clk 0:02:54.4]} 13. Qd3 {[%clk 0:02:40.1]} 13...
Ne8 {[%clk 0:02:51]} 14. d5 {[%clk 0:02:38]} 14... c5 {[%clk 0:02:42.7]} 15. d6
{[%clk 0:02:19.9]} 15... Be5 {[%clk 0:02:42.5]} 16. Ne4 {[%clk 0:02:14]} 16...
Qb6 {[%clk 0:02:26.3]} 17. Be3 {[%clk 0:02:12.5]} 17... Qxb2 {[%clk 0:02:12.1]}
18. Rd1 {[%clk 0:02:09.9]} 18... Nf6 {[%clk 0:01:49.5]} 19. Nxf6+ {[%clk
0:01:49.7]} 19... Bxf6 {[%clk 0:01:48.9]} 20. Bxc5 {[%clk 0:01:50.3]} 20... Qe5
{[%clk 0:01:21.5]} 21. Be3 {[%clk 0:01:27.7]} 21... b6 {[%clk 0:01:15.2]} 22.
Bf3 {[%clk 0:01:23]} 22... Rb8 {[%clk 0:01:15.3]} 23. Qa3 {[%clk 0:01:11.7]}
23... a5 {[%clk 0:01:04.4]} 24. Bd4 {[%clk 0:01:06.9]} 24... Qf5 {[%clk
0:00:58.2]} 25. Qe3 {[%clk 0:01:03.7]} 25... g6 {[%clk 0:00:52.7]} 26. Qe8+
{[%clk 0:00:48.7]} 26... Kg7 {[%clk 0:00:52.4]} 27. Bd5 {[%clk 0:00:49.4]} 27...
Bxd4 {[%clk 0:00:49.9]} 28. Rxd4 {[%clk 0:00:46.1]} 28... Bb7 {[%clk 0:00:25.4]}
29. Qxb8 {[%clk 0:00:39.8]} 29... Bxd5 {[%clk 0:00:25.9]} 30. Qe8 {[%clk
0:00:15.7]} 30... Bc6 {[%clk 0:00:20.1]} 31. Qe2 {[%clk 0:00:12.3]} 31... Qc5
{[%clk 0:00:18.9]} 32. Qd2 {[%clk 0:00:09.7]} 32... h5 {[%clk 0:00:16.9]} 33. c3
{[%clk 0:00:08]} 33... Qf5 {[%clk 0:00:16.8]} 34. h3 {[%clk 0:00:06.9]} 34... a4
{[%clk 0:00:17.2]} 35. Rf4 {[%clk 0:00:07]} 35... Qe5 {[%clk 0:00:17.1]} 36. Qd4
{[%clk 0:00:06.4]} 36... Qxd4 {[%clk 0:00:17.2]} 37. cxd4 {[%clk 0:00:07.1]}
37... f5 {[%clk 0:00:16.4]} 38. h4 {[%clk 0:00:07]} 38... Kf6 {[%clk 0:00:16.6]}
39. d5 {[%clk 0:00:07.7]} 39... Bxd5 {[%clk 0:00:13.3]} 40. Rxa4 {[%clk
0:00:08.3]} 40... Bc6 {[%clk 0:00:13.8]} 41. Rb4 {[%clk 0:00:08.8]} 41... b5
{[%clk 0:00:14.3]} 42. Rd4 {[%clk 0:00:09]} 42... Ke5 {[%clk 0:00:14.4]} 43. Rd2
{[%clk 0:00:09.9]} 43... Bd5 {[%clk 0:00:14.5]} 44. f3 {[%clk 0:00:09.8]} 44...
Kxd6 {[%clk 0:00:14.2]} 45. Kf2 {[%clk 0:00:10.7]} 45... Kc5 {[%clk 0:00:14.7]}
46. Ke3 {[%clk 0:00:11.1]} 46... Be6 {[%clk 0:00:12.5]} 47. Kf4 {[%clk
0:00:10.9]} 47... Kc4 {[%clk 0:00:13.4]} 48. Kg5 {[%clk 0:00:10.7]} 48... Kc3
{[%clk 0:00:14.3]} 49. Rf2 {[%clk 0:00:10.9]} 49... Bf7 {[%clk 0:00:11.9]} 50.
Kf6 {[%clk 0:00:11]} 50... Bc4 {[%clk 0:00:08.4]} 51. Kxg6 {[%clk 0:00:11.3]}
51... Bd3 {[%clk 0:00:08.3]} 52. Kxh5 {[%clk 0:00:11.3]} 52... d5 {[%clk
0:00:08.6]} 53. g4 {[%clk 0:00:11.8]} 53... d4 {[%clk 0:00:09.5]} 54. g5 {[%clk
0:00:12]} 54... f4 {[%clk 0:00:09.6]} 55. g6 {[%clk 0:00:12.6]} 55... Bc4 {[%clk
0:00:08.8]} 56. g7 {[%clk 0:00:12.1]} 56... d3 {[%clk 0:00:09.4]} 57. Kg6 {[%clk
0:00:12.5]} 57... d2 {[%clk 0:00:09.9]} 58. Rxd2 {[%clk 0:00:12.8]} 58... Kxd2
{[%clk 0:00:10.8]} 59. h5 {[%clk 0:00:12.9]} 59... Bxa2 {[%clk 0:00:10.8]} 60.
h6 {[%clk 0:00:13.2]} 60... b4 {[%clk 0:00:10.2]} 61. h7 {[%clk 0:00:13.4]}
61... Bb1+ {[%clk 0:00:10.5]} 62. Kh6 {[%clk 0:00:13.9]} 62... Bxh7 {[%clk
0:00:10.5]} 63. Kxh7 {[%clk 0:00:14.8]} 63... b3 {[%clk 0:00:09.8]} 64. g8=Q
{[%clk 0:00:15.2]} 64... b2 {[%clk 0:00:10.7]} 65. Qa2 {[%clk 0:00:14.7]} 65...
Kc1 {[%clk 0:00:10.9]} 66. Qc4+ {[%clk 0:00:15.3]} 66... Kd1 {[%clk 0:00:11.1]}
67. Qd3+ {[%clk 0:00:15.5]} 67... Kc1 {[%clk 0:00:11.1]} 68. Qc3+ {[%clk
0:00:16]} 68... Kb1 {[%clk 0:00:11.7]} 69. Kg6 {[%clk 0:00:16.1]} 69... Ka2
{[%clk 0:00:12.2]} 70. Qa5+ {[%clk 0:00:16.2]} 70... Kb1 {[%clk 0:00:12.7]} 71.
Kf5 {[%clk 0:00:16]} 71... Kc2 {[%clk 0:00:13.6]} 72. Qc5+ {[%clk 0:00:16.1]}
72... Kd2 {[%clk 0:00:13.2]} 73. Qd4+ {[%clk 0:00:16.2]} 73... Kc2 {[%clk
0:00:14.1]} 74. Qc4+ {[%clk 0:00:16.7]} 74... Kd2 {[%clk 0:00:14.8]} 75. Qb3
{[%clk 0:00:17.3]} 75... Kc1 {[%clk 0:00:14.7]} 76. Qc3+ {[%clk 0:00:18]} 76...
Kb1 {[%clk 0:00:15.6]} 77. Kxf4 {[%clk 0:00:18.4]} 77... Ka2 {[%clk 0:00:16.5]}
78. Qa5+ {[%clk 0:00:18]} 78... Kb3 {[%clk 0:00:16.4]} 79. Qb5+ {[%clk
0:00:18.5]} 79... Kc3 {[%clk 0:00:17.3]} 80. Ke5 {[%clk 0:00:18.2]} 80... b1=Q
{[%clk 0:00:18.2]} 81. Qxb1 {[%clk 0:00:17.7]} 1-0

[Event "Early-Titled-Tuesday-Blitz-February-27-2024"]
[Site "Chess.com"]
[Date "2024.02.27"]
[Round "3"]
[White "elchacal664"]
[Black "DefiantChair"]
[Result "0-1"]
[WhiteElo "2430"]
[BlackElo "2613"]
[TimeControl "180+1"]
[EndTime "8:29:28 PST"]
[Termination "DefiantChair won by resignation"]

1. Nf3 {[%clk 0:03:00.9]} 1... c5 {[%clk 0:02:58.7]} 2. g3 {[%clk 0:03:01.8]}
2... d5 {[%clk 0:02:58.4]} 3. Bg2 {[%clk 0:03:02.7]} 3... Nf6 {[%clk 0:02:58.8]}
4. O-O {[%clk 0:03:03.2]} 4... e6 {[%clk 0:02:59.3]} 5. c4 {[%clk 0:03:03]} 5...
d4 {[%clk 0:02:58.6]} 6. e3 {[%clk 0:03:02]} 6... Nc6 {[%clk 0:02:58]} 7. exd4
{[%clk 0:03:02.2]} 7... cxd4 {[%clk 0:02:58.9]} 8. d3 {[%clk 0:03:02.1]} 8... h6
{[%clk 0:02:54.5]} 9. Re1 {[%clk 0:02:59.9]} 9... Bd6 {[%clk 0:02:52.8]} 10. Na3
{[%clk 0:02:54.7]} 10... O-O {[%clk 0:02:50.4]} 11. Nc2 {[%clk 0:02:50.5]} 11...
Bc7 {[%clk 0:02:49]} 12. b4 {[%clk 0:02:48.8]} 12... a6 {[%clk 0:02:46.5]} 13.
Rb1 {[%clk 0:02:47.3]} 13... Bb6 {[%clk 0:02:38.3]} 14. a4 {[%clk 0:02:42.5]}
14... a5 {[%clk 0:02:36.9]} 15. b5 {[%clk 0:02:36]} 15... Ne7 {[%clk 0:02:33.4]}
16. Ba3 {[%clk 0:02:24.2]} 16... Nf5 {[%clk 0:02:26.9]} 17. Bxf8 {[%clk
0:02:22]} 17... Kxf8 {[%clk 0:02:27]} 18. Na1 {[%clk 0:02:12.7]} 18... Nd7
{[%clk 0:02:19.6]} 19. Nb3 {[%clk 0:02:11.5]} 19... Nc5 {[%clk 0:02:19.5]} 20.
Nxc5 {[%clk 0:02:09.8]} 20... Bxc5 {[%clk 0:02:20.4]} 21. Nd2 {[%clk 0:02:06.6]}
21... Rb8 {[%clk 0:02:19.5]} 22. Nb3 {[%clk 0:01:42.5]} 22... b6 {[%clk
0:02:19.3]} 23. Nxc5 {[%clk 0:01:42.2]} 23... bxc5 {[%clk 0:02:20.2]} 24. Qd2
{[%clk 0:01:34.8]} 24... Ne7 {[%clk 0:02:13.6]} 25. Qf4 {[%clk 0:01:29]} 25...
Qb6 {[%clk 0:02:10.4]} 26. Qe4 {[%clk 0:01:07.1]} 26... Kg8 {[%clk 0:02:01.3]}
27. Qe5 {[%clk 0:01:05.6]} 27... f6 {[%clk 0:01:52.6]} 28. Qh5 {[%clk
0:01:02.2]} 28... Bd7 {[%clk 0:01:50.5]} 29. Bh3 {[%clk 0:01:01.9]} 29... Kf8
{[%clk 0:01:37.1]} 30. Re2 {[%clk 0:00:52.2]} 30... Be8 {[%clk 0:01:33.2]} 31.
Qf3 {[%clk 0:00:51.9]} 31... e5 {[%clk 0:01:32.1]} 32. Rxe5 {[%clk 0:00:50.1]}
32... Ng6 {[%clk 0:01:31]} 33. Re2 {[%clk 0:00:43.7]} 33... Qc7 {[%clk
0:01:29.7]} 34. Rbe1 {[%clk 0:00:43.5]} 34... Bf7 {[%clk 0:01:28.2]} 35. Bf5
{[%clk 0:00:42.2]} 35... Ne5 {[%clk 0:01:27.6]} 36. Qf4 {[%clk 0:00:39.7]} 36...
g5 {[%clk 0:01:24.3]} 37. Qe4 {[%clk 0:00:36.5]} 37... Bh5 {[%clk 0:01:23.2]}
38. f4 {[%clk 0:00:32.6]} 38... Bf3 {[%clk 0:01:12.9]} 39. fxe5 {[%clk
0:00:29.4]} 39... Bxe4 {[%clk 0:01:13]} 40. Rxe4 {[%clk 0:00:28]} 40... Re8
{[%clk 0:01:10.2]} 41. e6 {[%clk 0:00:28]} 41... Re7 {[%clk 0:01:03.4]} 42. Bg6
{[%clk 0:00:26.5]} 42... Kg7 {[%clk 0:01:01.1]} 43. Bf7 {[%clk 0:00:26.5]} 43...
f5 {[%clk 0:00:59.7]} 44. Re5 {[%clk 0:00:26.5]} 44... Kf6 {[%clk 0:00:58.8]}
45. Rd5 {[%clk 0:00:24.7]} 45... h5 {[%clk 0:00:56.7]} 46. Ree5 {[%clk
0:00:24.5]} 46... Qxe5 {[%clk 0:00:50.4]} 47. Rxe5 {[%clk 0:00:24.2]} 47... Kxe5
{[%clk 0:00:51.3]} 48. Kf2 {[%clk 0:00:21.8]} 48... h4 {[%clk 0:00:50.6]} 49.
Kf3 {[%clk 0:00:21]} 49... g4+ {[%clk 0:00:45.9]} 50. Kf2 {[%clk 0:00:20.6]}
50... h3 {[%clk 0:00:45.6]} 51. Ke2 {[%clk 0:00:19.4]} 51... f4 {[%clk
0:00:45.5]} 52. Kf2 {[%clk 0:00:19.7]} 52... f3 {[%clk 0:00:38.7]} 53. Bh5
{[%clk 0:00:18.7]} 53... Kf5 {[%clk 0:00:36.5]} 54. Bf7 {[%clk 0:00:18.9]} 54...
Rb7 {[%clk 0:00:31.5]} 55. Bg8 {[%clk 0:00:16.9]} 55... Kf6 {[%clk 0:00:28.4]}
56. Bf7 {[%clk 0:00:16.9]} 56... Rb8 {[%clk 0:00:26.6]} 57. Bh5 {[%clk
0:00:16.7]} 57... Rg8 {[%clk 0:00:21.4]} 58. Bf7 {[%clk 0:00:16.1]} 58... Rg5
{[%clk 0:00:20.4]} 59. b6 {[%clk 0:00:15.8]} 59... Re5 {[%clk 0:00:20.3]} 60. b7
{[%clk 0:00:15.8]} 60... Re2+ {[%clk 0:00:20.4]} 61. Kf1 {[%clk 0:00:16]} 61...
Rb2 {[%clk 0:00:20.8]} 62. Bh5 {[%clk 0:00:15.9]} 62... Rxb7 {[%clk 0:00:12.1]}
63. Bxg4 {[%clk 0:00:16]} 63... Rb2 {[%clk 0:00:11.9]} 64. Bxh3 {[%clk
0:00:16.2]} 64... Rxh2 {[%clk 0:00:11.9]} 65. Bg4 {[%clk 0:00:16.7]} 65... Ra2
{[%clk 0:00:11.4]} 66. Bxf3 {[%clk 0:00:16.5]} 66... Rxa4 {[%clk 0:00:11.7]} 67.
Bd5 {[%clk 0:00:16.7]} 67... Ra1+ {[%clk 0:00:11.7]} 0-1

[Event "Early-Titled-Tuesday-Blitz-February-27-2024"]
[Site "Chess.com"]
[Date "2024.02.27"]
[Round "3"]
[White "GianmarcoVaR"]
[Black "PLAYER_2006_M"]
[Result "0-1"]
[WhiteElo "2729"]
[BlackElo "3009"]
[TimeControl "180+1"]
[EndTime "8:29:30 PST"]
[Termination "PLAYER_2006_M won on time"]

1. e4 {[%clk 0:03:00.9]} 1... e5 {[%clk 0:02:59.7]} 2. Nf3 {[%clk 0:03:01.2]}
2... Nf6 {[%clk 0:03:00.2]} 3. Nxe5 {[%clk 0:03:00]} 3... d6 {[%clk 0:03:00.8]}
4. Nf3 {[%clk 0:03:00.1]} 4... Nxe4 {[%clk 0:03:01.5]} 5. c4 {[%clk 0:03:00.7]}
5... Nc6 {[%clk 0:02:58.6]} 6. Nc3 {[%clk 0:02:55.4]} 6... Nxc3 {[%clk
0:02:57.6]} 7. dxc3 {[%clk 0:02:55.7]} 7... Bf5 {[%clk 0:02:57]} 8. Be3 {[%clk
0:02:50.8]} 8... Be7 {[%clk 0:02:56.8]} 9. g3 {[%clk 0:02:50.7]} 9... O-O {[%clk
0:02:53.8]} 10. Bg2 {[%clk 0:02:51.2]} 10... Re8 {[%clk 0:02:50.6]} 11. Nd4
{[%clk 0:02:48.5]} 11... Nxd4 {[%clk 0:02:48.6]} 12. cxd4 {[%clk 0:02:49.4]}
12... Bg5 {[%clk 0:02:42.7]} 13. O-O {[%clk 0:02:48.7]} 13... c6 {[%clk
0:02:25.1]} 14. Bxg5 {[%clk 0:02:36.8]} 14... Qxg5 {[%clk 0:02:24.8]} 15. Qb3
{[%clk 0:02:37.2]} 15... Re7 {[%clk 0:02:21.5]} 16. Rfe1 {[%clk 0:02:23.9]}
16... Rae8 {[%clk 0:02:21]} 17. Qc3 {[%clk 0:02:15.5]} 17... h5 {[%clk
0:02:17.1]} 18. h4 {[%clk 0:02:11]} 18... Qf6 {[%clk 0:02:16.3]} 19. Rxe7 {[%clk
0:02:01.9]} 19... Qxe7 {[%clk 0:02:17.2]} 20. Bf3 {[%clk 0:02:01.3]} 20... g6
{[%clk 0:02:17.1]} 21. Kg2 {[%clk 0:01:54.6]} 21... Be4 {[%clk 0:02:17]} 22. Rd1
{[%clk 0:01:07.9]} 22... Bxf3+ {[%clk 0:02:14.8]} 23. Qxf3 {[%clk 0:01:08.8]}
23... Qe2 {[%clk 0:02:15.4]} 24. Rd3 {[%clk 0:01:08.7]} 24... Qxb2 {[%clk
0:02:05.6]} 25. Rb3 {[%clk 0:01:08.8]} 25... Qxa2 {[%clk 0:01:57.4]} 26. Rxb7
{[%clk 0:01:00.8]} 26... Qxc4 {[%clk 0:01:57.3]} 27. Rxa7 {[%clk 0:00:59.2]}
27... Rf8 {[%clk 0:01:53.2]} 28. Qf6 {[%clk 0:00:51.4]} 28... Qd5+ {[%clk
0:01:52.5]} 29. Kh2 {[%clk 0:00:51]} 29... Re8 {[%clk 0:01:33]} 30. Rd7 {[%clk
0:00:50.1]} 30... Qe6 {[%clk 0:00:49.9]} 31. Rxd6 {[%clk 0:00:47]} 31... Qxf6
{[%clk 0:00:49.8]} 32. Rxf6 {[%clk 0:00:47.9]} 32... Rc8 {[%clk 0:00:50.4]} 33.
Rd6 {[%clk 0:00:33.4]} 33... Kf8 {[%clk 0:00:49.7]} 34. Rd7 {[%clk 0:00:33.4]}
34... Ke8 {[%clk 0:00:49.9]} 35. Ra7 {[%clk 0:00:33.6]} 35... Rd8 {[%clk
0:00:50.4]} 36. Rc7 {[%clk 0:00:33.6]} 36... Rd6 {[%clk 0:00:50.5]} 37. Kg2
{[%clk 0:00:33.3]} 37... Rf6 {[%clk 0:00:45.7]} 38. Kf1 {[%clk 0:00:25.3]} 38...
Re6 {[%clk 0:00:45.7]} 39. Kg2 {[%clk 0:00:24.1]} 39... Rf6 {[%clk 0:00:32.6]}
40. Kf1 {[%clk 0:00:19.1]} 40... Kd8 {[%clk 0:00:33.1]} 41. Ra7 {[%clk
0:00:18.6]} 41... Rf3 {[%clk 0:00:27.6]} 42. Ke2 {[%clk 0:00:18]} 42... Rf6
{[%clk 0:00:28.3]} 43. Ke3 {[%clk 0:00:16.9]} 43... Ke8 {[%clk 0:00:28.8]} 44.
Rc7 {[%clk 0:00:15.9]} 44... Rd6 {[%clk 0:00:27.8]} 45. f3 {[%clk 0:00:14.2]}
45... Re6+ {[%clk 0:00:28.1]} 46. Kf4 {[%clk 0:00:14.1]} 46... Rf6+ {[%clk
0:00:28.2]} 47. Ke4 {[%clk 0:00:14.6]} 47... Re6+ {[%clk 0:00:25.6]} 48. Kf4
{[%clk 0:00:14.7]} 48... f6 {[%clk 0:00:26.1]} 49. Rg7 {[%clk 0:00:12.2]} 49...
Rd6 {[%clk 0:00:24.2]} 50. Ke3 {[%clk 0:00:12.1]} 50... Rd5 {[%clk 0:00:20.3]}
51. g4 {[%clk 0:00:05.9]} 51... hxg4 {[%clk 0:00:13.3]} 52. fxg4 {[%clk
0:00:06.8]} 52... g5 {[%clk 0:00:13.8]} 53. h5 {[%clk 0:00:06.4]} 53... Kf8
{[%clk 0:00:13.9]} 54. Rc7 {[%clk 0:00:05.8]} 54... Rd6 {[%clk 0:00:12.3]} 55.
Ke4 {[%clk 0:00:06.1]} 55... Kg8 {[%clk 0:00:08]} 56. h6 {[%clk 0:00:05.4]}
56... f5+ {[%clk 0:00:08.6]} 57. Kxf5 {[%clk 0:00:05.7]} 57... Rxh6 {[%clk
0:00:09.3]} 58. Kxg5 {[%clk 0:00:04.3]} 58... Rd6 {[%clk 0:00:09.8]} 59. Rc8+
{[%clk 0:00:03.8]} 59... Kf7 {[%clk 0:00:10]} 60. Rc7+ {[%clk 0:00:01.9]} 60...
Ke6 {[%clk 0:00:09.4]} 61. Kh6 {[%clk 0:00:01.4]} 61... Kd5+ {[%clk 0:00:10.1]}
62. Kh5 {[%clk 0:00:01.3]} 62... Kxd4 {[%clk 0:00:10.5]} 63. g5 {[%clk
0:00:01.9]} 63... c5 {[%clk 0:00:11.2]} 64. g6 {[%clk 0:00:02.5]} 64... Rd8
{[%clk 0:00:05.3]} 0-1

[Event "Early-Titled-Tuesday-Blitz-February-27-2024"]
[Site "Chess.com"]
[Date "2024.02.27"]
[Round "3"]
[White "GaiozNigalidze"]
[Black "Lukianoo"]
[Result "1-0"]
[WhiteElo "2646"]
[BlackElo "2836"]
[TimeControl "180+1"]
[EndTime "8:29:31 PST"]
[Termination "GaiozNigalidze won by checkmate"]

1. d4 {[%clk 0:03:00]} 1... Nf6 {[%clk 0:02:59.9]} 2. Nf3 {[%clk 0:02:58.9]}
2... e6 {[%clk 0:03:00.2]} 3. g3 {[%clk 0:02:57.6]} 3... b5 {[%clk 0:03:00]} 4.
Bg2 {[%clk 0:02:56.8]} 4... Bb7 {[%clk 0:03:00.3]} 5. O-O {[%clk 0:02:56.7]}
5... c5 {[%clk 0:03:00.2]} 6. c3 {[%clk 0:02:56.4]} 6... d5 {[%clk 0:02:59.8]}
7. a4 {[%clk 0:02:55.3]} 7... b4 {[%clk 0:03:00]} 8. cxb4 {[%clk 0:02:50.5]}
8... cxb4 {[%clk 0:03:00.9]} 9. a5 {[%clk 0:02:29]} 9... Ba6 {[%clk 0:02:52.8]}
10. Ne5 {[%clk 0:02:25.5]} 10... Nbd7 {[%clk 0:02:42.6]} 11. Qa4 {[%clk
0:01:55.9]} 11... Qb8 {[%clk 0:02:38.7]} 12. Nxd7 {[%clk 0:01:35.3]} 12... Nxd7
{[%clk 0:02:39.6]} 13. Bf4 {[%clk 0:01:31.9]} 13... Qb5 {[%clk 0:02:36.3]} 14.
Qxb5 {[%clk 0:01:28.9]} 14... Bxb5 {[%clk 0:02:37.2]} 15. Re1 {[%clk 0:01:24.3]}
15... Rc8 {[%clk 0:02:15.6]} 16. Nd2 {[%clk 0:01:00.6]} 16... Be7 {[%clk
0:02:11.1]} 17. e4 {[%clk 0:00:46.1]} 17... dxe4 {[%clk 0:02:10.1]} 18. Nxe4
{[%clk 0:00:44.5]} 18... Nf6 {[%clk 0:00:56.3]} 19. Nd6+ {[%clk 0:00:44.2]}
19... Bxd6 {[%clk 0:00:56.3]} 20. Bxd6 {[%clk 0:00:44.4]} 20... Bc6 {[%clk
0:00:56.6]} 21. Bxb4 {[%clk 0:00:33.4]} 21... Bxg2 {[%clk 0:00:56.1]} 22. Kxg2
{[%clk 0:00:33.6]} 22... Kd7 {[%clk 0:00:40.2]} 23. a6 {[%clk 0:00:30.2]} 23...
Rc7 {[%clk 0:00:31.7]} 24. Bc5 {[%clk 0:00:27.8]} 24... Rb8 {[%clk 0:00:30.9]}
25. b4 {[%clk 0:00:18.6]} 25... Nd5 {[%clk 0:00:31.1]} 26. Reb1 {[%clk
0:00:17.3]} 26... Rb5 {[%clk 0:00:26.6]} 27. Ra5 {[%clk 0:00:17.1]} 27... Kc6
{[%clk 0:00:26.2]} 28. Rba1 {[%clk 0:00:16.2]} 28... Rxa5 {[%clk 0:00:19.2]} 29.
Rxa5 {[%clk 0:00:13.4]} 29... Nc3 {[%clk 0:00:19.1]} 30. Kf3 {[%clk 0:00:13.1]}
30... Nb5 {[%clk 0:00:19]} 31. Ke4 {[%clk 0:00:12.2]} 31... Rd7 {[%clk
0:00:18.9]} 32. f4 {[%clk 0:00:10.5]} 32... Rd8 {[%clk 0:00:11.9]} 33. Kd3
{[%clk 0:00:10.1]} 33... Rc8 {[%clk 0:00:06.6]} 34. Kc4 {[%clk 0:00:09.6]} 34...
Nd6+ {[%clk 0:00:06.6]} 35. Bxd6 {[%clk 0:00:08.6]} 35... Kxd6+ {[%clk
0:00:07.5]} 36. Rc5 {[%clk 0:00:08.5]} 36... Rb8 {[%clk 0:00:07.6]} 37. b5
{[%clk 0:00:08.7]} 37... Kd7 {[%clk 0:00:07.6]} 38. Rc6 {[%clk 0:00:08.6]} 38...
h6 {[%clk 0:00:07.2]} 39. Kc5 {[%clk 0:00:08.5]} 39... g5 {[%clk 0:00:06.8]} 40.
b6 {[%clk 0:00:07.9]} 40... axb6+ {[%clk 0:00:07]} 41. Kb5 {[%clk 0:00:07.2]}
41... gxf4 {[%clk 0:00:05.9]} 42. Rxb6 {[%clk 0:00:05.6]} 42... Rc8 {[%clk
0:00:04.6]} 43. gxf4 {[%clk 0:00:05.5]} 43... Rc1 {[%clk 0:00:04.6]} 44. Rb7+
{[%clk 0:00:05.5]} 44... Kd6 {[%clk 0:00:05]} 45. a7 {[%clk 0:00:03.3]} 45...
Rb1+ {[%clk 0:00:05.3]} 46. Kc4 {[%clk 0:00:03.5]} 46... Ra1 {[%clk 0:00:05.5]}
47. Rxf7 {[%clk 0:00:03.5]} 47... Ra4+ {[%clk 0:00:05.7]} 48. Kb5 {[%clk
0:00:03.2]} 48... Ra2 {[%clk 0:00:06]} 49. Kb6 {[%clk 0:00:03.2]} 49... Rb2+
{[%clk 0:00:06]} 50. Ka6 {[%clk 0:00:03.3]} 50... Ra2+ {[%clk 0:00:06]} 51. Kb7
{[%clk 0:00:03.4]} 51... Rb2+ {[%clk 0:00:06.6]} 52. Kc8 {[%clk 0:00:03.5]}
52... Ra2 {[%clk 0:00:05.1]} 53. Kb8 {[%clk 0:00:03.5]} 53... Rb2+ {[%clk
0:00:06]} 54. Rb7 {[%clk 0:00:02.1]} 54... Rg2 {[%clk 0:00:06.6]} 55. a8=Q
{[%clk 0:00:01.6]} 55... Rg8+ {[%clk 0:00:07.5]} 56. Ka7 {[%clk 0:00:01.2]}
56... Rg2 {[%clk 0:00:08.4]} 57. Rb6+ {[%clk 0:00:01.2]} 57... Ke7 {[%clk
0:00:08.5]} 58. Qb7+ {[%clk 0:00:01.4]} 58... Kf6 {[%clk 0:00:09.4]} 59. Kb8
{[%clk 0:00:01.5]} 59... Ra2 {[%clk 0:00:10.3]} 60. Qc6 {[%clk 0:00:01.7]} 60...
Kf5 {[%clk 0:00:11.2]} 61. Rb5+ {[%clk 0:00:01.8]} 61... Kg4 {[%clk 0:00:12.1]}
62. Qc4 {[%clk 0:00:02.1]} 62... Rc2 {[%clk 0:00:12.9]} 63. Qxc2 {[%clk
0:00:01.7]} 63... Kxf4 {[%clk 0:00:13.5]} 64. Re5 {[%clk 0:00:01.7]} 64... Kf3
{[%clk 0:00:13.9]} 65. Qe4+ {[%clk 0:00:01.8]} 65... Kf2 {[%clk 0:00:13.8]} 66.
Qe2+ {[%clk 0:00:02]} 66... Kg1 {[%clk 0:00:14.7]} 67. Re3 {[%clk 0:00:02.3]}
67... h5 {[%clk 0:00:12.8]} 68. Rd3 {[%clk 0:00:02.6]} 68... h4 {[%clk
0:00:13.2]} 69. Rd1# {[%clk 0:00:02.8]} 1-0